fUSD/lending_fUSD_20250202
["ID","MTS","AMOUNT","RATE_DAILY","PERIOD"]
[351292644,1738506867572,-783.88,0.00011094,2]
[351292645,1738506867602,-500.0,0.00011094,2]
[351292646,1738506867631,-500.0,0.00011095,2]
[351292647,1738506867659,-500.0,0.00011095,2]
[351292648,1738506867688,-668.95,0.00011095,2]
[351292649,1738506867716,-500.0,0.00011095,2]
[351292650,1738506867745,-500.0,0.00011095,2]
[351292651,1738506867773,-1367.49,0.00011095,2]
[351292652,1738506867801,-500.0,0.00011095,2]
[351292653,1738506867828,-500.0,0.00011095,2]
[351292654,1738506867857,-500.0,0.00011095,2]
[351292655,1738506867884,-500.0,0.00011095,2]
[351292656,1738506867912,-500.0,0.00011095,2]
[351292657,1738506867938,-500.0,0.00011095,2]
[351292658,1738506867965,-500.0,0.00011095,2]
[351292659,1738506867996,-1207.44,0.00011095,2]
[351292660,1738506868025,-607.77,0.00011095,2]
[351292661,1738506868053,-500.0,0.00011095,2]
[351292662,1738506868085,-893.94,0.00011095,2]
[351292663,1738506868114,-500.0,0.00011095,2]
[351292664,1738506868143,-500.0,0.00011095,2]
[351292665,1738506868171,-893.11,0.00011095,2]
[351292666,1738506868198,-500.0,0.00011095,2]
[351292667,1738506868226,-533.68,0.00011095,2]
[351292668,1738506868257,-904.83,0.00011095,2]
[351292669,1738506868299,-500.0,0.00011095,2]
[351292670,1738506868330,-500.0,0.00011095,2]
[351292671,1738506868361,-1199.7,0.00011095,2]
[351292672,1738506868392,-500.0,0.00011095,2]
[351292673,1738506868421,-500.0,0.00011095,2]
[351292674,1738506868452,-500.0,0.00011095,2]
[351292675,1738506868481,-971.7,0.00011095,2]
[351292676,1738506868511,-500.0,0.00011095,2]
[351292677,1738506868539,-858.42,0.00011095,2]
[351292678,1738506868572,-500.0,0.00011095,2]
[351292679,1738506868603,-1044.18,0.00011095,2]
[351292680,1738506868635,-548.9,0.00011095,2]
[351292681,1738506868664,-500.0,0.00011095,2]
[351292682,1738506868694,-500.0,0.00011095,2]
[351292683,1738506868722,-1000.0,0.00011095,2]
[351292684,1738506868749,-502.70992506,0.00011095,2]
[351292685,1738506868777,-2280.4,0.00011095,2]
[351292686,1738506868805,-500.0,0.00011095,2]
[351292687,1738506868832,-1287.5,0.00011095,2]
[351292688,1738506868861,-2287.77,0.00011095,2]
[351292689,1738506868888,-500.0,0.00011095,2]
[351292690,1738506868916,-1594.62,0.00011095,2]
[351292691,1738506868945,-500.0,0.00011095,2]
[351292692,1738506868972,-500.0,0.00011095,2]
[351292693,1738506869001,-660.37,0.00011095,2]
[351292694,1738506869029,-880.33,0.00011095,2]
[351292695,1738506869059,-1878.57,0.00011095,2]
[351292696,1738506869090,-1462.97,0.00011095,2]
[351292697,1738506869119,-615.22,0.00011095,2]
[351292698,1738506869149,-500.0,0.00011095,2]
[351292699,1738506869177,-500.0,0.00011095,2]
[351292700,1738506869204,-500.0,0.00011095,2]
[351292701,1738506869233,-1492.58,0.00011095,2]
[351292702,1738506869262,-1390.1,0.00011095,2]
[351292703,1738506869290,-500.0,0.00011095,2]
[351292704,1738506869318,-307.76115527,0.00011095,2]
[351292705,1738506869345,-500.0,0.00011095,2]
[351292706,1738506869373,-500.0,0.00011095,2]
[351292707,1738506869402,-4007.33,0.00011095,2]
[351292708,1738506869430,-500.0,0.00011095,2]
[351292709,1738506869458,-500.0,0.00011095,2]
[351292710,1738506869486,-3361.46,0.00011095,2]
[351292711,1738506869514,-3091.67,0.00011095,2]
[351292712,1738506869542,-3513.54,0.00011095,2]
[351292713,1738506869572,-1834.55,0.00011095,2]
[351292714,1738506869601,-500.0,0.00011095,2]
[351292715,1738506869630,-778.09,0.00011095,2]
[351292716,1738506869660,-1799.35,0.00011095,2]
[351292717,1738506869689,-500.0,0.00011095,2]
[351292718,1738506869717,-1202.72,0.00011095,2]
[351292719,1738506869744,-575.38,0.00011095,2]
[351292720,1738506869772,-500.0,0.00011095,2]
[351292721,1738506869800,-661.91,0.00011095,2]
[351292722,1738506869828,-500.0,0.00011095,2]
[351292723,1738506869856,-500.0,0.00011095,2]
[351292724,1738506869884,-1378.04,0.00011095,2]
[351292725,1738506869913,-5710.65,0.00011095,2]
[351292726,1738506869940,-500.0,0.00011095,2]
[351292727,1738506869970,-2904.45,0.00011095,2]
[351292728,1738506870001,-500.0,0.00011095,2]
[351292729,1738506870030,-500.0,0.00011095,2]
[351292730,1738506870060,-861.56,0.00011095,2]
[351292731,1738506870090,-500.0,0.00011095,2]
[351292732,1738506870118,-771.15,0.00011095,2]
[351292733,1738506870150,-496.70248679,0.00011095,2]
[351292734,1738506870178,-500.0,0.00011095,2]
[351292735,1738506870208,-2459.53,0.00011095,2]
[351292736,1738506870237,-500.0,0.00011095,2]
[351292737,1738506870267,-753.35,0.00011095,2]
[351292738,1738506870295,-1514.5,0.00011095,2]
[351292739,1738506870324,-1798.72,0.00011095,2]
[351292740,1738506870355,-500.0,0.00011095,2]
[351292741,1738506870383,-500.0,0.00011095,2]
[351292742,1738506870412,-500.0,0.00011095,2]
[351292743,1738506870440,-500.0,0.00011095,2]
[351292744,1738506870468,-500.0,0.00011095,2]
[351292745,1738506870497,-500.0,0.00011095,2]
[351292746,1738506870526,-500.0,0.00011095,2]
[351292747,1738506870556,-500.0,0.00011095,2]
[351292748,1738506870585,-500.0,0.00011095,2]
[351292749,1738506870612,-1867.28,0.00011095,2]
[351292750,1738506870639,-500.0,0.00011095,2]
[351292751,1738506870667,-500.0,0.00011095,2]
[351292752,1738506870695,-500.0,0.00011095,2]
[351292753,1738506870723,-500.0,0.00011095,2]
[351292754,1738506870753,-961.27,0.00011095,2]
[351292755,1738506870782,-840.49,0.00011095,2]
[351292756,1738506870998,-500.0,0.00011095,2]
[351292757,1738506871026,-500.0,0.00011095,2]
[351292758,1738506871056,-500.0,0.00011095,2]
[351292759,1738506871086,-767.1,0.00011095,2]
[351292760,1738506871116,-500.0,0.00011095,2]
[351292761,1738506871146,-543.71,0.0001123,2]
[351292762,1738506871175,-500.0,0.00011231,2]
[351292763,1738506871204,-500.0,0.00011231,2]
[351292764,1738506871232,-500.0,0.00011231,2]
[351292765,1738506871262,-500.0,0.00011231,2]
[351292766,1738506871290,-500.0,0.00011231,2]
[351292767,1738506871319,-605.77,0.00011231,2]
[351292768,1738506871348,-500.0,0.00011231,2]
[351292769,1738506871376,-500.0,0.00011231,2]
[351292770,1738506871404,-500.0,0.00011231,2]
[351292771,1738506871432,-500.0,0.00011231,2]
[351292772,1738506871463,-500.0,0.00011231,2]
[351292773,1738506871492,-500.0,0.00011231,2]
[351292774,1738506871519,-500.0,0.00011231,2]
[351292775,1738506871546,-500.0,0.00011231,2]
[351292776,1738506871572,-500.0,0.00011231,2]
[351292777,1738506871600,-500.0,0.00011231,2]
[351292778,1738506871627,-500.0,0.00011231,2]
[351292779,1738506871655,-522.09106877,0.00011231,2]
[351292780,1738506871682,-500.0,0.00011231,2]
[351292781,1738506871709,-500.0,0.00011231,2]
[351292782,1738506871736,-500.0,0.00011231,2]
[351292783,1738506871766,-500.0,0.00011231,2]
[351292784,1738506871794,-500.0,0.00011231,2]
[351292785,1738506871820,-543.40564538,0.00011231,2]
[351292786,1738506871848,-500.0,0.00011231,2]
[351292787,1738506871876,-500.0,0.00011231,2]
[351292788,1738506871903,-783.88,0.00011231,2]
[351292789,1738506871930,-500.0,0.00011232,2]
[351292790,1738506871958,-500.0,0.00011232,2]
[351292791,1738506871986,-668.95,0.00011232,2]
[351292792,1738506872016,-500.0,0.00011232,2]
[351292793,1738506872044,-500.0,0.00011232,2]
[351292794,1738506872072,-500.0,0.00011232,2]
[351292795,1738506872101,-1367.49,0.00011232,2]
[351292796,1738506872128,-500.0,0.00011232,2]
[351292797,1738506872155,-500.0,0.00011232,2]
[351292798,1738506872183,-519.61634184,0.00011232,2]
[351292799,1738506872210,-500.0,0.00011232,2]
[351292800,1738506872239,-500.0,0.00011232,2]
[351292801,1738506872266,-500.0,0.00011232,2]
[351292802,1738506872295,-1207.44,0.00011232,2]
[351292803,1738506872324,-607.77,0.00011232,2]
[351292804,1738506872352,-500.0,0.00011232,2]
[351292805,1738506872380,-893.94,0.00011232,2]
[351292806,1738506872408,-500.0,0.00011232,2]
[351292807,1738506872436,-500.0,0.00011232,2]
[351292808,1738506872464,-893.11,0.00011232,2]
[351292809,1738506872491,-500.0,0.00011232,2]
[351292810,1738506872520,-533.68,0.00011232,2]
[351292811,1738506872549,-904.83,0.00011232,2]
[351292812,1738506872577,-500.0,0.00011232,2]
[351292813,1738506872605,-500.0,0.00011232,2]
[351292814,1738506872634,-1199.7,0.00011232,2]
[351292815,1738506872664,-500.0,0.00011232,2]
[351292816,1738506872692,-500.0,0.00011232,2]
[351292817,1738506872722,-500.0,0.00011232,2]
[351292818,1738506872751,-971.7,0.00011232,2]
[351292819,1738506872780,-500.0,0.00011232,2]
[351292820,1738506872809,-858.42,0.00011232,2]
[351292821,1738506872837,-500.0,0.00011232,2]
[351292822,1738506872866,-1044.18,0.00011232,2]
[351292823,1738506872895,-548.9,0.00011232,2]
[351292824,1738506872922,-500.0,0.00011232,2]
[351292825,1738506872951,-500.0,0.00011232,2]
[351292826,1738506872979,-1000.0,0.00011232,2]
[351292827,1738506873012,-2280.4,0.00011232,2]
[351292828,1738506873043,-500.0,0.00011232,2]
[351292829,1738506873072,-1287.5,0.00011232,2]
[351292830,1738506873101,-2287.77,0.00011232,2]
[351292831,1738506873130,-500.0,0.00011232,2]
[351292832,1738506873159,-1594.62,0.00011232,2]
[351292833,1738506873188,-500.0,0.00011232,2]
[351292834,1738506873217,-500.0,0.00011232,2]
[351292835,1738506873247,-660.37,0.00011232,2]
[351292836,1738506873276,-880.33,0.00011232,2]
[351292837,1738506873306,-1878.57,0.00011232,2]
[351292838,1738506873336,-1462.97,0.00011232,2]
[351292839,1738506873366,-615.22,0.00011232,2]
[351292840,1738506873396,-500.0,0.00011232,2]
[351292841,1738506873425,-500.0,0.00011232,2]
[351292842,1738506873455,-500.0,0.00011232,2]
[351292843,1738506873485,-1492.58,0.00011232,2]
[351292844,1738506873513,-1390.1,0.00011232,2]
[351292845,1738506873543,-500.0,0.00011232,2]
[351292846,1738506873572,-500.0,0.00011232,2]
[351292847,1738506873601,-500.0,0.00011232,2]
[351292848,1738506873631,-4007.33,0.00011232,2]
[351292849,1738506873663,-500.0,0.00011232,2]
[351292850,1738506873690,-500.0,0.00011232,2]
[351292851,1738506873720,-3361.46,0.00011232,2]
[351292852,1738506873749,-3091.67,0.00011232,2]
[351292853,1738506873778,-3513.54,0.00011232,2]
[351292854,1738506873809,-1834.55,0.00011232,2]
[351292855,1738506873837,-500.0,0.00011232,2]
[351292856,1738506873866,-778.09,0.00011232,2]
[351292857,1738506873898,-1799.35,0.00011232,2]
[351292858,1738506873927,-500.0,0.00011232,2]
[351292859,1738506873957,-1202.72,0.00011232,2]
[351292860,1738506873985,-500.0,0.00011232,2]
[351292861,1738506874017,-661.91,0.00011232,2]
[351292862,1738506874045,-500.0,0.00011232,2]
[351292863,1738506874073,-500.0,0.00011232,2]
[351292864,1738506874104,-1378.04,0.00011232,2]
[351292865,1738506874131,-5710.65,0.00011232,2]
[351292866,1738506874160,-500.0,0.00011232,2]
[351292867,1738506874323,-2904.45,0.00011232,2]
[351292868,1738506874383,-500.0,0.00011232,2]
[351292869,1738506874414,-500.0,0.00011232,2]
[351292870,1738506874442,-861.56,0.00011232,2]
[351292871,1738506874471,-500.0,0.00011232,2]
[351292872,1738506874501,-771.15,0.00011232,2]
[351292873,1738506874531,-2459.53,0.00011232,2]
[351292874,1738506874559,-500.0,0.00011232,2]
[351292875,1738506874587,-500.0,0.00011232,2]
[351292876,1738506874615,-753.35,0.00011232,2]
[351292877,1738506874644,-1514.5,0.00011232,2]
[351292878,1738506874673,-1798.72,0.00011232,2]
[351292879,1738506874702,-500.0,0.00011232,2]
[351292880,1738506874731,-500.0,0.00011232,2]
[351292881,1738506874759,-500.0,0.00011232,2]
[351292882,1738506874787,-500.0,0.00011232,2]
[351292883,1738506874815,-500.0,0.00011232,2]
[351292884,1738506874844,-500.0,0.00011232,2]
[351292885,1738506874874,-500.0,0.00011232,2]
[351292886,1738506874905,-500.0,0.00011232,2]
[351292887,1738506874934,-500.0,0.00011232,2]
[351292888,1738506874962,-1867.28,0.00011232,2]
[351292889,1738506874992,-500.0,0.00011232,2]
[351292890,1738506875024,-500.0,0.00011232,2]
[351292891,1738506875055,-500.0,0.00011232,2]
[351292892,1738506875087,-500.0,0.00011232,2]
[351292893,1738506875115,-961.27,0.00011232,2]
[351292894,1738506875145,-840.49,0.00011232,2]
[351292895,1738506875172,-500.0,0.00011232,2]
[351292896,1738506875200,-500.0,0.00011232,2]
[351292897,1738506875228,-767.1,0.00011232,2]
[351292898,1738506875257,-500.0,0.00011232,2]
[351292899,1738506875285,-175.21,0.00011273,2]
[351292900,1738506875315,-543.71,0.00011367,2]
[351292901,1738506875345,-500.0,0.00011368,2]
[351292902,1738506875374,-500.0,0.00011368,2]
[351292903,1738506875410,-500.0,0.00011368,2]
[351292904,1738506875439,-500.0,0.00011368,2]
[351292905,1738506875468,-500.0,0.00011368,2]
[351292906,1738506875498,-500.0,0.00011368,2]
[351292907,1738506875527,-500.0,0.00011368,2]
[351292908,1738506875555,-500.0,0.00011368,2]
[351292909,1738506875582,-500.0,0.00011368,2]
[351292910,1738506875611,-500.0,0.00011368,2]
[351292911,1738506875638,-527.15,0.00011368,2]
[351292912,1738506875671,-500.0,0.00011368,2]
[351292913,1738506875701,-500.0,0.00011368,2]
[351292914,1738506875730,-679.54,0.00011368,2]
[351292915,1738506875760,-500.0,0.00011368,2]
[351292916,1738506875789,-500.0,0.00011368,2]
[351292917,1738506875817,-500.0,0.00011368,2]
[351292918,1738506875847,-500.0,0.00011368,2]
[351292919,1738506875875,-500.0,0.00011368,2]
[351292920,1738506875906,-500.0,0.00011368,2]
[351292921,1738506875935,-500.0,0.00011368,2]
[351292922,1738506875964,-500.0,0.00011368,2]
[351292923,1738506875993,-500.0,0.00011368,2]
[351292924,1738506876027,-500.0,0.00011368,2]
[351292925,1738506876056,-500.0,0.00011368,2]
[351292926,1738506876086,-512.79929901,0.00011368,2]
[351292927,1738506876113,-500.0,0.00011368,2]
[351292928,1738506876141,-500.0,0.00011368,2]
[351292929,1738506876172,-500.0,0.00011368,2]
[351292930,1738506876201,-1041.34,0.00011368,2]
[351292931,1738506876231,-500.0,0.00011368,2]
[351292932,1738506876259,-500.0,0.00011368,2]
[351292933,1738506876288,-500.0,0.00011368,2]
[351292934,1738506876317,-500.0,0.00011368,2]
[351292935,1738506876346,-500.0,0.00011368,2]
[351292936,1738506876374,-593.98,0.00011368,2]
[351292937,1738506876409,-500.0,0.00011368,2]
[351292938,1738506876438,-441.73502757,0.00011368,2]
[351292939,1738506876467,-500.0,0.00011368,2]
[351292940,1738506876496,-500.0,0.00011368,2]
[351292941,1738506876527,-500.0,0.00011368,2]
[351292942,1738506876556,-393.63657452,0.00011368,2]
[351292943,1738506876586,-561.48,0.00011368,2]
[351292944,1738506876615,-500.0,0.00011368,2]
[351292945,1738506876653,-500.0,0.00011368,2]
[351292946,1738506876684,-2551.31,0.00011368,2]
[351292947,1738506876716,-500.0,0.00011368,2]
[351292948,1738506876747,-500.0,0.00011368,2]
[351292949,1738506876776,-500.0,0.00011368,2]
[351292950,1738506876805,-500.0,0.00011368,2]
[351292951,1738506876834,-500.0,0.00011368,2]
[351292952,1738506876864,-4671.75,0.00011368,2]
[351292953,1738506876897,-500.0,0.00011368,2]
[351292954,1738506876927,-506.83151347,0.00011368,2]
[351292955,1738506876956,-500.0,0.00011368,2]
[351292956,1738506876986,-500.0,0.00011368,2]
[351292957,1738506877020,-500.0,0.00011368,2]
[351292958,1738506877049,-1647.85,0.00011368,2]
[351292959,1738506877083,-500.0,0.00011368,2]
[351292960,1738506877112,-2040.76,0.00011368,2]
[351292961,1738506877141,-500.0,0.00011368,2]
[351292962,1738506877173,-512.5,0.00011368,2]
[351292963,1738506877202,-500.0,0.00011368,2]
[351292964,1738506877231,-500.0,0.00011368,2]
[351292965,1738506877261,-1415.89,0.00011368,2]
[351292966,1738506877289,-500.0,0.00011368,2]
[351292967,1738506877318,-500.0,0.00011368,2]
[351292968,1738506877352,-500.0,0.00011368,2]
[351292969,1738506877383,-500.0,0.00011368,2]
[351292970,1738506877415,-500.0,0.00011368,2]
[351292971,1738506877444,-500.0,0.00011368,2]
[351292972,1738506877477,-4941.79,0.00011368,2]
[351292973,1738506877506,-500.0,0.00011368,2]
[351292974,1738506877535,-500.0,0.00011368,2]
[351292975,1738506877564,-500.0,0.00011368,2]
[351292976,1738506877595,-807.74,0.00011368,2]
[351292977,1738506877625,-500.0,0.00011368,2]
[351292978,1738506877657,-1173.94,0.00011368,2]
[351292979,1738506877892,-500.0,0.00011368,2]
[351292980,1738506877923,-500.0,0.00011368,2]
[351292981,1738506877953,-500.0,0.00011368,2]
[351292982,1738506877986,-500.0,0.00011368,2]
[351292983,1738506878020,-2008.5,0.00011368,2]
[351292984,1738506878051,-2194.97,0.00011368,2]
[351292985,1738506878083,-500.0,0.00011368,2]
[351292986,1738506878114,-500.0,0.00011368,2]
[351292987,1738506878145,-500.0,0.00011368,2]
[351292988,1738506878190,-500.0,0.00011368,2]
[351292989,1738506878221,-500.0,0.00011368,2]
[351292990,1738506878252,-500.0,0.00011368,2]
[351292991,1738506878282,-500.0,0.00011368,2]
[351292992,1738506878312,-783.88,0.00011368,2]
[351292993,1738506878345,-535.48,0.00011368,2]
[351292994,1738506878378,-7031.5,0.00011368,2]
[351292995,1738506878408,-500.0,0.00011368,2]
[351292996,1738506878440,-500.0,0.00011368,2]
[351292997,1738506878471,-500.0,0.00011368,2]
[351292998,1738506878501,-500.0,0.00011368,2]
[351292999,1738506878532,-554.19,0.00011368,2]
[351293000,1738506878562,-500.0,0.00011368,2]
[351293001,1738506878593,-571.2,0.00011368,2]
[351293002,1738506878624,-500.0,0.00011368,2]
[351293003,1738506878657,-500.0,0.00011368,2]
[351293004,1738506878686,-696.89,0.00011368,2]
[351293005,1738506878718,-500.0,0.00011368,2]
[351293006,1738506878748,-500.0,0.00011368,2]
[351293007,1738506878777,-500.0,0.00011368,2]
[351293008,1738506878807,-500.0,0.00011369,2]
[351293009,1738506878836,-500.0,0.00011369,2]
[351293010,1738506878866,-668.95,0.00011369,2]
[351293011,1738506878897,-500.0,0.00011369,2]
[351293012,1738506878928,-500.0,0.00011369,2]
[351293013,1738506878958,-500.0,0.00011369,2]
[351293014,1738506878987,-1367.49,0.00011369,2]
[351293015,1738506879021,-500.0,0.00011369,2]
[351293016,1738506879052,-500.0,0.00011369,2]
[351293017,1738506879081,-500.0,0.00011369,2]
[351293018,1738506879110,-500.0,0.00011369,2]
[351293019,1738506879139,-500.0,0.00011369,2]
[351293020,1738506879172,-1207.44,0.00011369,2]
[351293021,1738506879203,-607.77,0.00011369,2]
[351293022,1738506879234,-500.0,0.00011369,2]
[351293023,1738506879266,-893.94,0.00011369,2]
[351293024,1738506879294,-500.0,0.00011369,2]
[351293025,1738506879322,-500.0,0.00011369,2]
[351293026,1738506879351,-893.11,0.00011369,2]
[351293027,1738506879381,-500.0,0.00011369,2]
[351293028,1738506879413,-533.68,0.00011369,2]
[351293029,1738506879448,-904.83,0.00011369,2]
[351293030,1738506879478,-500.0,0.00011369,2]
[351293031,1738506879508,-500.0,0.00011369,2]
[351293032,1738506879537,-1199.7,0.00011369,2]
[351293033,1738506879566,-500.0,0.00011369,2]
[351293034,1738506879596,-500.0,0.00011369,2]
[351293035,1738506879627,-500.0,0.00011369,2]
[351293036,1738506879657,-971.7,0.00011369,2]
[351293037,1738506879687,-500.0,0.00011369,2]
[351293038,1738506879717,-858.42,0.00011369,2]
[351293039,1738506879747,-500.0,0.00011369,2]
[351293040,1738506879778,-1044.18,0.00011369,2]
[351293041,1738506879808,-548.9,0.00011369,2]
[351293042,1738506879837,-500.0,0.00011369,2]
[351293043,1738506879868,-500.0,0.00011369,2]
[351293044,1738506879898,-1000.0,0.00011369,2]
[351293045,1738506879928,-2280.4,0.00011369,2]
[351293046,1738506879962,-500.0,0.00011369,2]
[351293047,1738506879993,-1287.5,0.00011369,2]
[351293048,1738506880025,-2287.77,0.00011369,2]
[351293049,1738506880054,-500.0,0.00011369,2]
[351293050,1738506880084,-1594.62,0.00011369,2]
[351293051,1738506880118,-500.0,0.00011369,2]
[351293052,1738506880149,-500.0,0.00011369,2]
[351293053,1738506880179,-880.33,0.00011369,2]
[351293054,1738506880210,-1878.57,0.00011369,2]
[351293055,1738506880240,-660.37,0.00011369,2]
[351293056,1738506880270,-1462.97,0.00011369,2]
[351293057,1738506880300,-615.22,0.00011369,2]
[351293058,1738506880329,-500.0,0.00011369,2]
[351293059,1738506880362,-500.0,0.00011369,2]
[351293060,1738506880394,-500.0,0.00011369,2]
[351293061,1738506880425,-1492.58,0.00011369,2]
[351293062,1738506880457,-1390.1,0.00011369,2]
[351293063,1738506880486,-500.0,0.00011369,2]
[351293064,1738506880516,-500.0,0.00011369,2]
[351293065,1738506880546,-500.0,0.00011369,2]
[351293066,1738506880576,-4007.33,0.00011369,2]
[351293067,1738506880606,-500.0,0.00011369,2]
[351293068,1738506880636,-500.0,0.00011369,2]
[351293069,1738506880669,-3361.46,0.00011369,2]
[351293071,1738506880699,-3091.67,0.00011369,2]
[351293072,1738506880728,-3513.54,0.00011369,2]
[351293073,1738506880762,-1834.55,0.00011369,2]
[351293074,1738506880800,-500.0,0.00011369,2]
[351293075,1738506880833,-1799.35,0.00011369,2]
[351293076,1738506880867,-778.09,0.00011369,2]
[351293077,1738506880906,-500.0,0.00011369,2]
[351293078,1738506880941,-1202.72,0.00011369,2]
[351293079,1738506880972,-500.0,0.00011369,2]
[351293080,1738506881004,-392.03695367,0.00011369,2]
[351293081,1738506881035,-1378.04,0.00011369,2]
[351293082,1738506881065,-500.0,0.00011369,2]
[351293083,1738506881095,-5710.65,0.00011369,2]
[351293084,1738506881124,-661.91,0.00011369,2]
[351293085,1738506881157,-500.0,0.00011369,2]
[351293086,1738506881188,-2904.45,0.00011369,2]
[351293087,1738506881220,-500.0,0.00011369,2]
[351293088,1738506881251,-861.56,0.00011369,2]
[351293089,1738506881280,-500.0,0.00011369,2]
[351293090,1738506881310,-500.0,0.00011369,2]
[351293091,1738506881339,-771.15,0.00011369,2]
[351293092,1738506881634,-2459.53,0.00011369,2]
[351293093,1738506881664,-500.0,0.00011369,2]
[351293094,1738506881696,-500.0,0.00011369,2]
[351293095,1738506881725,-753.35,0.00011369,2]
[351293096,1738506881753,-1514.5,0.00011369,2]
[351293097,1738506881784,-1798.72,0.00011369,2]
[351293098,1738506881813,-500.0,0.00011369,2]
[351293099,1738506881842,-500.0,0.00011369,2]
[351293100,1738506881871,-500.0,0.00011369,2]
[351293101,1738506881900,-500.0,0.00011369,2]
[351293102,1738506881928,-500.0,0.00011369,2]
[351293103,1738506881956,-500.0,0.00011369,2]
[351293104,1738506881986,-500.0,0.00011369,2]
[351293105,1738506882021,-500.0,0.00011369,2]
[351293106,1738506882051,-500.0,0.00011369,2]
[351293107,1738506882081,-1867.28,0.00011369,2]
[351293108,1738506882110,-500.0,0.00011369,2]
[351293109,1738506882139,-500.0,0.00011369,2]
[351293110,1738506882169,-500.0,0.00011369,2]
[351293111,1738506882198,-500.0,0.00011369,2]
[351293112,1738506882228,-961.27,0.00011369,2]
[351293113,1738506882256,-840.49,0.00011369,2]
[351293114,1738506882285,-500.0,0.00011369,2]
[351293115,1738506882314,-500.0,0.00011369,2]
[351293116,1738506882343,-767.1,0.00011369,2]
[351293117,1738506882373,-500.0,0.00011369,2]
[351293118,1738506882403,-653.58422346,0.000115,5]
[351293119,1738506882432,-500.0,0.00011505,2]
[351293120,1738506882462,-500.0,0.00011505,2]
[351293121,1738506882492,-500.0,0.00011505,2]
[351293122,1738506882522,-500.0,0.00011505,2]
[351293123,1738506882551,-500.0,0.00011505,2]
[351293124,1738506882586,-500.0,0.00011505,2]
[351293125,1738506882616,-500.0,0.00011505,2]
[351293126,1738506882646,-500.0,0.00011505,2]
[351293127,1738506882676,-500.0,0.00011505,2]
[351293128,1738506882705,-500.0,0.00011505,2]
[351293129,1738506882734,-500.0,0.00011505,2]
[351293130,1738506882763,-527.15,0.00011505,2]
[351293131,1738506882791,-500.0,0.00011505,2]
[351293132,1738506882821,-500.0,0.00011505,2]
[351293133,1738506882851,-679.54,0.00011505,2]
[351293134,1738506882883,-500.0,0.00011505,2]
[351293135,1738506882913,-500.0,0.00011505,2]
[351293136,1738506882942,-500.0,0.00011505,2]
[351293137,1738506882971,-500.0,0.00011505,2]
[351293138,1738506883003,-500.0,0.00011505,2]
[351293139,1738506883032,-500.0,0.00011505,2]
[351293140,1738506883061,-500.0,0.00011505,2]
[351293141,1738506883090,-500.0,0.00011505,2]
[351293142,1738506883120,-500.0,0.00011505,2]
[351293143,1738506883150,-500.0,0.00011505,2]
[351293144,1738506883179,-510.2516117,0.00011505,2]